Workbook

Sheet Superpesis
B1: Annika Turtiainen | E1: 10.1.1993 Lappeenranta
B2: SUPERPESIS | E2: Runkosarja | I2: Kärkilyönnit (KL), pesänvälit | Q2: Runkosarja | U2: Ylempi loppusarja | Z2: Alempi loppusarja | AG2: Arvo-ottelut ja mitalit
B3: Vuosi | C3: Sija | D3: Seura | E3: OTT | F3: KUN | G3: LÖI | H3: TOI | I3: KL | J3: 0 > 1 | K3: 1 > 2 | L3: 2 > 3 | M3: 3 > k | N3: KL-% | P3: LÖI | Q3: TOI | R3: L+T | S3: KL | U3: OTT | V3: KUN | W3: LÖI | X3: TOI | Y3: KL | Z3: OTT | AA3: KUN | AB3: LÖI | AC3: TOI | AD3: KL | AE3: IL | AF3: LL | AG3: Halli | AH3: K | AI3: H | AJ3: P
B4: 2011 | D4: Pesä Ysit 2 | F4: ykköspesis
B5: 2011 | C5: 4. | D5: Pesä Ysit | E5: 1 | F5: 0 | G5: 0 | H5: 0 | I5: 1 | J5: 1 | K5: 0 | L5: 0 | M5: 0 | N5: 33.3 % | O5: 3
B6: 2012 | D6: Pesä Ysit 2 | F6: suomensarja | O6: 0
B7: 2012 | C7: 5. | D7: Pesä Ysit | E7: 3 | F7: 0 | G7: 0 | H7: 0 | I7: 1 | J7: 0 | K7: 1 | L7: 0 | M7: 0 | N7: 33.3 % | O7: 3
B8: 2013 | D8: Pesä Ysit 2 | F8: suomensarja | O8: 0
B9: 2013 | C9: 4. | D9: Pesä Ysit | E9: 1 | F9: 0 | G9: 0 | H9: 0 | I9: 0 | J9: 0 | K9: 0 | L9: 0 | M9: 0 | N9: 0.0 % | O9: 1 | U9: 2 | V9: 0 | W9: 0 | X9: 0 | Y9: 0
B10: 2014 | D10: Pesä Ysit 2 | F10: suomensarja | O10: 0
B11: 2014 | C11: 9. | D11: Pesä Ysit | E11: 24 | F11: 0 | G11: 14 | H11: 7 | I11: 60 | J11: 23 | K11: 14 | L11: 9 | M11: 14 | N11: 39.5 % | O11: 152
B12: 2015 | D12: Pesä Ysit 2 | F12: suomensarja | O12: 0
B13: 2015 | C13: 9. | D13: Pesä Ysit | E13: 23 | F13: 0 | G13: 5 | H13: 1 | I13: 28 | J13: 11 | K13: 6 | L13: 6 | M13: 5 | N13: 32.2 % | O13: 87
B14: 2016 | D14: Pesä Ysit 2 | F14: suomensarja | O14: 0
B15: 2016 | C15: 8. | D15: Pesä Ysit | E15: 22 | F15: 0 | G15: 3 | H15: 11 | I15: 61 | J15: 22 | K15: 17 | L15: 19 | M15: 3 | N15: 48.0 % | O15: 127 | U15: 3 | V15: 0 | W15: 0 | X15: 0 | Y15: 4
B16: 2017 | D16: Pesä Ysit 2 | F16: suomensarja | O16: 0
B17: 2017 | C17: 9. | D17: Pesä Ysit | E17: 24 | F17: 1 | G17: 11 | H17: 7 | I17: 91 | J17: 16 | K17: 38 | L17: 25 | M17: 12 | N17: 55.8 % | O17: 163
B18: 2018 | C18: 8. | D18: Pesä Ysit | E18: 21 | F18: 1 | G18: 4 | H18: 6 | I18: 50 | J18: 12 | K18: 16 | L18: 17 | M18: 5 | N18: 50.5 % | O18: 99 | U18: 1 | V18: 0 | W18: 0 | X18: 0 | Y18: 2
B19: 2019 | C19: 9. | D19: Pesä Ysit | E19: 24 | F19: 0 | G19: 3 | H19: 5 | I19: 78 | J19: 6 | K19: 40 | L19: 29 | M19: 3 | N19: 49.1 % | O19: 159
B20: Yhteensä | E20: =SUM(E4:E19) -> 143 | F20: 2 | G20: 40 | H20: 37 | I20: 370 | J20: 91 | K20: 132 | L20: 105 | M20: 42 | N20: =PRODUCT(I20/O20) -> 46.6 % | O20: =SUM(O5:O19) -> 794 | U20: =SUM(U4:U19) -> 6 | V20: 0 | W20: 0 | X20: 0 | Y20: 6 | Z20: 0 | AA20: 0 | AB20: 0 | AC20: 0 | AD20: 0 | AE20: 0 | AF20: 0 | AG20: 0 | AH20: 0 | AI20: 0 | AJ20: 0
B21: Pesispörssi | D21: =SUM(F20:H20)+((I20-F20-G20)/3)+(E20/3)+(AE20*25)+(AF20*25)+(AG20*10)+(AH20*25)+(AI20*20)+(AJ20*15) -> 236.0
B23: URA SUPERISSA | E23: OTT | F23: KUN | G23: LÖI | H23: TOI | I23: KL | K23: ka/L | L23: ka/T | M23: ka/KL | N23: K - % | P23: ENSIMMÄISET
B24: Runkosarja | E24: =PRODUCT(E20) -> 143 | F24: =PRODUCT(F20) -> 2 | G24: =PRODUCT(G20) -> 40 | H24: =PRODUCT(H20) -> 37 | I24: =PRODUCT(I20) -> 370 | K24: =PRODUCT((F24+G24)/E24) -> 0.29 | L24: =PRODUCT(H24/E24) -> 0.26 | M24: =PRODUCT(I24/E24) -> 2.59 | N24: =PRODUCT(N20) -> 46.6 % | O24: =PRODUCT(O20) -> 794 | P24: Ottelu | R24: 12.06. 2011 Pesä Ysit - PeTo-Jussit 2-0 (11-4, 9-2) | AC24: 1. ottelu | AF24: 16 v 8 kk 13 pv
B25: Ylempi loppusarja | E25: =SUM(U20) -> 6 | F25: =SUM(V20) -> 0 | G25: =SUM(W20) -> 0 | H25: =SUM(X20) -> 0 | I25: =SUM(Y20) -> 6 | K25: =PRODUCT((F25+G25)/E25) -> 0.00 | L25: =PRODUCT(H25/E25) -> 0.00 | M25: =PRODUCT(I25/E25) -> 1.00 | N25: =PRODUCT(I25/O25) -> 31.6 % | O25: 19 | P25: Lyöty | R25: 21.05. 2014 Pesä Ysit - Räpsä 0-2 (1-3, 5-10) | AC25: 10. ottelu | AF25: 21 v 4 kk 11 pv
B26: Alempi loppusarja | P26: Tuotu | R26: 24.05. 2014 Pesä Ysit - Roihu 2-0 (4-0, 3-0) | AC26: 11. ottelu | AF26: 21 v 4 kk 14 pv
B27: KAIKKI | E27: =SUM(E24:E26) -> 149 | F27: =SUM(F24:F26) -> 2 | G27: =SUM(G24:G26) -> 40 | H27: =SUM(H24:H26) -> 37 | I27: =SUM(I24:I26) -> 376 | K27: =PRODUCT((F27+G27)/E27) -> 0.28 | L27: =PRODUCT(H27/E27) -> 0.25 | M27: =PRODUCT(I27/E27) -> 2.52 | N27: =PRODUCT(I27/O27) -> 46.2 % | O27: =SUM(O24:O26) -> 813 | P27: Kunnari | R27: 12.07. 2017 Virkiä - Pesä Ysit 2-0 (4-2, 8-4) | AC27: 88. ottelu | AF27: 24 v 6 kk 2 pv
B29: Seurat | D29: Pesä Ysit = Pesä Ysit, Lappeenranta (1976), kasvattajaseura

Sheet Arvo-ottelut
B1: ITÄ - LÄNSI - KORTTI
B2: Annika Turtiainen | C2: 10.1.1993 Lappeenranta
B3: B-TYTÖT | C3: Itä - Länsi, tulos | D3: Joukkue | E3: Seura | G3: V | H3: T | I3: H | J3: Up. | K3: Lj. | L3: Palk. | M3: O | N3: K | O3: L | P3: T | Q3: KL | R3: 1 | S3: 2 | T3: 3 | U3: k | V3: KL-% | W3: Pelinjohtaja | X3: Yleisöä
B4: 21.07. 2012 Sotkamo | C4: 0-2 (2-8, 2-4) | D4: Itä | E4: Pesä Ysit | I4: 1 | K4: jok | M4: 1 | Q4: 2/3 | T4: 2/2 | U4: 0/1 | V4: 66.7 % | W4: Marko Haverinen | X4: 1909
